bitfinex/quotes_BTCUSD_20250901
["timestamp","ask_amount","ask_price","bid_price","bid_amount"]
[1756767378306,0.35416,108600.0,108590.0,1.11982602]
[1756767378515,0.35416,108600.0,108590.0,1.11775602]
[1756767378753,0.35713,108600.0,108590.0,1.11775602]
[1756767378983,0.35713,108600.0,108590.0,0.46280501]
[1756767379212,0.35713,108600.0,108590.0,0.48374383]
[1756767380374,0.35713,108600.0,108590.0,0.77771602]
[1756767381245,0.35713,108600.0,108590.0,0.48374383]
[1756767381452,0.35713,108600.0,108590.0,0.77771602]
[1756767381867,0.35713,108600.0,108590.0,0.48374383]
[1756767383212,0.35713,108600.0,108590.0,0.77771602]
[1756767383417,0.35713,108600.0,108590.0,0.48374383]
[1756767383629,0.35713,108600.0,108590.0,0.77771602]
[1756767383781,0.35713,108600.0,108590.0,0.48374383]
[1756767383990,0.35416,108600.0,108590.0,0.48581383]
[1756767384446,0.35416,108600.0,108590.0,0.48374383]
[1756767385156,0.35416,108600.0,108590.0,0.77771602]
[1756767385600,0.35713,108600.0,108590.0,0.48374383]
[1756767385914,0.35713,108600.0,108590.0,0.32570383]
[1756767386064,0.35713,108600.0,108590.0,0.48370383]
[1756767389543,0.15887427,108600.0,108590.0,0.77974602]
[1756767389752,0.30201,108600.0,108590.0,0.78279602]
[1756767390489,0.3,108600.0,108590.0,1.12279602]
[1756767390692,0.00758685,108620.0,108610.0,0.1841451]
[1756767390902,0.30805772,108620.0,108610.0,0.80113509]
[1756767391110,0.30805772,108620.0,108610.0,1.18300758]
[1756767391313,0.30805772,108620.0,108610.0,1.21372758]
[1756767391764,0.30805772,108620.0,108610.0,1.21256737]
[1756767392379,0.30805772,108620.0,108610.0,1.23350619]
[1756767392601,0.31105772,108620.0,108610.0,1.23350619]
[1756767393024,0.31105772,108620.0,108610.0,1.25798506]
[1756767394143,0.30805772,108620.0,108610.0,1.25798506]
[1756767394562,0.30805772,108620.0,108610.0,1.26098506]
[1756767394969,0.30805772,108620.0,108610.0,1.23650619]
[1756767398114,0.30805772,108620.0,108610.0,1.23642619]
[1756767399464,0.30805772,108620.0,108610.0,1.07850619]
[1756767399697,0.31010772,108620.0,108610.0,1.23337619]
[1756767399900,0.30805772,108620.0,108610.0,1.23631619]
[1756767401328,0.30805772,108620.0,108610.0,1.07839619]
[1756767401547,0.31010772,108620.0,108610.0,1.23627619]
[1756767401730,0.30805772,108620.0,108610.0,1.23627619]
[1756767402145,0.30805772,108620.0,108610.0,1.49957619]
[1756767402761,0.26805772,108620.0,108610.0,1.49957619]
[1756767403189,0.0002,108630.0,108610.0,1.49957619]
[1756767403190,0.0002,108630.0,108620.0,0.54506697]
[1756767403415,0.34034114,108630.0,108620.0,1.09177515]
[1756767403616,0.34239114,108630.0,108620.0,1.09373515]
[1756767404027,0.34239114,108630.0,108620.0,1.12140215]
[1756767404241,0.34239114,108630.0,108620.0,1.11846215]
[1756767404458,0.34239114,108630.0,108620.0,1.11750215]
[1756767404886,0.34034114,108630.0,108620.0,1.12240215]
[1756767405954,0.34034114,108630.0,108620.0,1.13152682]
[1756767407016,0.34239114,108630.0,108620.0,1.13152682]
[1756767407220,0.34034114,108630.0,108620.0,1.13152682]
[1756767407639,0.34239114,108630.0,108620.0,1.13152682]
[1756767408065,0.34239114,108630.0,108620.0,1.39482682]
[1756767408471,0.34034114,108630.0,108620.0,1.39482682]
[1756767408899,0.34239114,108630.0,108620.0,1.39482682]
[1756767409835,0.34239114,108630.0,108620.0,1.23694682]
[1756767410064,0.34540114,108630.0,108620.0,1.38988682]
[1756767410496,0.34239114,108630.0,108620.0,1.39184682]
[1756767410701,0.34540114,108630.0,108620.0,1.38988682]
[1756767412378,0.34239114,108630.0,108620.0,1.38988682]
[1756767412600,0.34239114,108630.0,108620.0,1.39478682]
[1756767414260,0.34239114,108630.0,108620.0,1.38988682]
[1756767416092,0.34239114,108630.0,108620.0,1.39184682]
[1756767416347,0.34239114,108630.0,108620.0,1.09591463]
[1756767416594,0.34239114,108630.0,108620.0,1.38988682]
[1756767417234,0.34239114,108630.0,108620.0,1.39184682]
[1756767417813,0.34239114,108630.0,108620.0,1.39478682]
[1756767418015,0.34239114,108630.0,108620.0,1.39470682]
[1756767419423,0.34239114,108630.0,108620.0,1.61590682]
[1756767419839,0.34239114,108630.0,108620.0,1.32193463]
[1756767420055,0.34239114,108630.0,108620.0,1.61590682]
[1756767420500,0.34239114,108630.0,108620.0,1.32193463]
[1756767420735,0.34239114,108630.0,108620.0,1.61590682]
[1756767420959,0.34034114,108630.0,108620.0,1.45814682]
[1756767421383,0.34034114,108630.0,108620.0,1.61590682]
[1756767422499,0.34239114,108630.0,108620.0,1.31899463]
[1756767422705,0.34239114,108630.0,108620.0,1.45520682]
[1756767422911,0.34239114,108630.0,108620.0,1.61586682]
[1756767426654,0.34239114,108630.0,108620.0,1.45814682]
[1756767426872,0.34034114,108630.0,108620.0,1.61586682]
[1756767429460,0.34245114,108630.0,108620.0,1.61586682]
[1756767429688,0.34245114,108630.0,108620.0,1.45814682]
[1756767429894,0.34245114,108630.0,108620.0,1.61582682]
[1756767430094,0.34245114,108630.0,108620.0,1.45814682]
[1756767430275,0.34245114,108630.0,108620.0,1.61582682]
[1756767430510,0.34034114,108630.0,108620.0,1.61582682]
[1756767432087,0.34034114,108630.0,108620.0,1.45814682]
[1756767432310,0.34034114,108630.0,108620.0,1.61582682]
[1756767433849,0.34034114,108630.0,108620.0,1.45814682]
[1756767434063,0.34034114,108630.0,108620.0,1.61578682]
[1756767435612,0.34245114,108630.0,108620.0,1.61578682]
[1756767436471,0.34034114,108630.0,108620.0,1.61578682]
[1756767439653,0.34034114,108630.0,108620.0,1.45814682]
[1756767440116,0.34034114,108630.0,108620.0,1.61574682]
[1756767443298,0.34034114,108630.0,108620.0,1.32177463]
[1756767443726,0.34034114,108630.0,108620.0,1.61574682]
[1756767445224,0.34245114,108630.0,108620.0,1.61574682]
[1756767445533,0.34034114,108630.0,108620.0,1.61574682]
[1756767446365,0.34034114,108630.0,108620.0,1.35244682]
[1756767446597,0.34034114,108630.0,108620.0,1.19484682]
[1756767446810,0.34034114,108630.0,108620.0,1.35240682]
[1756767448165,0.34034114,108630.0,108620.0,1.64486935]
[1756767449179,0.34245114,108630.0,108620.0,1.64486935]
[1756767449359,0.34245114,108630.0,108620.0,1.64192935]
[1756767449946,0.34245114,108630.0,108620.0,1.64496935]
[1756767450151,0.34245114,108630.0,108620.0,1.05853463]
[1756767450357,0.34245114,108630.0,108620.0,1.64492935]
[1756767450728,0.34034114,108630.0,108620.0,1.64492935]
[1756767451419,0.34034114,108630.0,108620.0,1.05849463]
[1756767451597,0.34034114,108630.0,108620.0,1.64492935]
[1756767453628,0.34245114,108630.0,108620.0,1.64492935]
[1756767454237,0.00195,108660.0,108650.0,0.20501613]
[1756767454444,0.01406,108660.0,108650.0,0.81842948]
[1756767454637,0.34729,108660.0,108650.0,0.81842948]
[1756767455146,0.34729,108660.0,108650.0,0.52521212]
[1756767455280,0.34729,108660.0,108650.0,0.81842948]
[1756767455709,0.34729,108660.0,108650.0,0.52521212]
[1756767455910,0.34729,108660.0,108650.0,0.86167163]
[1756767456137,0.34729,108660.0,108650.0,0.56845427]
[1756767456349,0.34406,108660.0,108650.0,0.86352501]
[1756767456959,0.34406,108660.0,108650.0,0.86672501]
[1756767458432,0.34406,108660.0,108650.0,0.57361427]
[1756767460637,0.34406,108660.0,108650.0,0.86352501]
[1756767460809,0.34406,108660.0,108650.0,0.57041427]
[1756767461808,0.34406,108660.0,108650.0,0.56845427]
[1756767462012,0.3471,108660.0,108650.0,0.41093427]
[1756767462311,0.3471,108660.0,108650.0,0.56837427]
[1756767463130,0.3471,108660.0,108650.0,0.41093427]
[1756767463309,0.3471,108660.0,108650.0,0.56837427]
[1756767465787,0.64021074,108660.0,108650.0,0.54739545]
[1756767466213,0.64021074,108660.0,108650.0,0.56833427]
[1756767466214,0.3471,108660.0,108650.0,0.56833427]
[1756767466456,0.34406,108660.0,108650.0,0.57029427]
[1756767466680,0.3471,108660.0,108650.0,0.56833427]
[1756767466913,0.3471,108660.0,108650.0,0.41093427]
[1756767467130,0.3471,108660.0,108650.0,0.56833427]
[1756767467346,0.34406,108660.0,108650.0,0.56833427]
[1756767467542,0.34406,108660.0,108650.0,0.57029427]
[1756767467754,0.34406,108660.0,108650.0,0.56833427]
[1756767468856,0.3471,108660.0,108650.0,0.56833427]
[1756767469767,0.34406,108660.0,108650.0,0.57029427]
[1756767469978,0.34406,108660.0,108650.0,0.57349427]
[1756767471901,0.34406,108660.0,108650.0,0.57029427]
[1756767472083,0.34406,108660.0,108650.0,0.56833427]
[1756767472666,0.3471,108660.0,108650.0,0.56833427]
[1756767472871,0.3471,108660.0,108650.0,0.41093427]
[1756767473075,0.3471,108660.0,108650.0,0.56829427]
[1756767475373,0.3471,108660.0,108650.0,0.56825427]
[1756767476000,0.3471,108660.0,108650.0,0.41093427]
[1756767476409,0.3471,108660.0,108650.0,0.56825427]
[1756767478701,0.34406,108660.0,108650.0,0.56825427]
[1756767479103,0.34406,108660.0,108650.0,0.41289427]
[1756767479308,0.34406,108660.0,108650.0,0.57017427]
[1756767479543,0.34406,108660.0,108650.0,0.57337427]
[1756767480400,0.34406,108660.0,108650.0,0.59587727]
[1756767480606,0.3471,108660.0,108650.0,0.59587727]
[1756767480808,0.13067862,108660.0,108650.0,0.59587727]
[1756767480981,0.47968469,108670.0,108660.0,0.18406037]
[1756767481149,0.80166469,108670.0,108660.0,0.27597636]
[1756767481860,0.89358068,108670.0,108660.0,0.24915599]
[1756767482068,1.11829142,108670.0,108660.0,0.24915599]
[1756767482274,0.55973594,108670.0,108660.0,0.24915599]
[1756767482477,0.82933069,108670.0,108660.0,0.24915599]
[1756767483104,0.349646,108670.0,108660.0,0.43517636]
[1756767483314,0.32198,108670.0,108660.0,0.43837636]
[1756767483560,0.32,108670.0,108660.0,0.43837636]
[1756767484694,0.322,108670.0,108660.0,0.43837636]
[1756767484910,0.32398,108670.0,108660.0,0.43837636]
[1756767485138,0.32398,108670.0,108660.0,0.43321636]
[1756767485768,0.80113417,108670.0,108660.0,0.24915599]
[1756767485988,0.89557016,108670.0,108660.0,0.09191599]
[1756767486201,0.89557016,108670.0,108660.0,0.24911599]
[1756767486416,0.60245942,108670.0,108660.0,0.24911599]
[1756767486628,0.89557016,108670.0,108660.0,0.43317636]
[1756767486846,0.89305016,108670.0,108660.0,0.43317636]
[1756767487061,0.61709074,108670.0,108660.0,0.43317636]
[1756767487308,0.80113417,108670.0,108660.0,0.43317636]
[1756767487554,0.80113417,108670.0,108660.0,0.27597636]
[1756767487801,0.80113417,108670.0,108660.0,0.24911599]
[1756767488036,0.80365417,108670.0,108660.0,0.43317636]
[1756767488687,0.89557016,108670.0,108660.0,0.43317636]
[1756767489991,0.80365417,108670.0,108660.0,0.43317636]
[1756767490204,0.80113417,108670.0,108660.0,0.43317636]
[1756767490897,0.80365417,108670.0,108660.0,0.09191599]
[1756767491104,0.80365417,108670.0,108660.0,0.24907599]
[1756767491529,0.82717016,108670.0,108660.0,0.24907599]
[1756767491740,0.91908615,108670.0,108660.0,0.24907599]
[1756767492153,0.94675215,108670.0,108660.0,0.24907599]
[1756767495037,0.85356205,108670.0,108660.0,0.24907599]
[1756767495680,0.85356205,108670.0,108660.0,0.09191599]
[1756767495890,0.18406037,108660.0,108650.0,0.07123087]
[1756767496097,0.79717111,108660.0,108650.0,0.16314686]
[1756767496322,1.09478185,108660.0,108650.0,0.07123087]
[1756767496538,1.55021383,108660.0,108650.0,0.22835087]
[1756767497186,1.57788483,108660.0,108650.0,0.22835087]
[1756767497614,1.48596884,108660.0,108650.0,0.22835087]
[1756767498905,1.48796884,108660.0,108650.0,0.22835087]
[1756767499134,1.48796884,108660.0,108650.0,0.07123087]
[1756767499392,1.48796884,108660.0,108650.0,0.22835087]
[1756767500980,0.90174736,108660.0,108650.0,0.22835087]
[1756767501187,1.46445285,108660.0,108650.0,0.22835087]
[1756767503417,1.55636884,108660.0,108650.0,0.22835087]
[1756767505831,0.97014736,108660.0,108650.0,0.07123087]
[1756767506073,1.57988483,108660.0,108650.0,0.22831087]
[1756767512021,1.57746483,108660.0,108650.0,0.22831087]
[1756767514752,1.57746483,108660.0,108650.0,0.07123087]
[1756767514963,1.57988483,108660.0,108650.0,0.07123087]
[1756767515176,1.57988483,108660.0,108650.0,0.22823087]
[1756767516706,1.57746483,108660.0,108650.0,0.22823087]
[1756767516888,1.57988483,108660.0,108650.0,0.22823087]
[1756767518634,1.68553351,108660.0,108650.0,0.00047087]
[1756767518813,1.68553351,108660.0,108650.0,0.15747087]
[1756767519472,1.70277466,108660.0,108650.0,0.15747087]
[1756767520320,1.90777466,108660.0,108650.0,0.00047087]
[1756767521156,1.91077466,108660.0,108650.0,0.00047087]
[1756767521825,2.00269065,108660.0,108650.0,0.00047087]
[1756767522035,2.00270298,108660.0,108650.0,0.00047087]
[1756767522450,1.99407893,108660.0,108650.0,0.00047087]
[1756767522659,2.00270378,108660.0,108650.0,0.00047087]
[1756767523226,2.00266378,108660.0,108650.0,0.00047087]
[1756767524090,0.5241112,108630.0,108620.0,0.07076]
[1756767524287,1.56576466,108630.0,108620.0,0.22819101]
[1756767524550,1.56576466,108630.0,108620.0,0.23118101]
[1756767524551,1.56785466,108630.0,108620.0,0.23118101]
[1756767524746,1.59553466,108630.0,108620.0,0.23118101]
[1756767525049,1.59553466,108630.0,108620.0,0.23317101]
[1756767525184,1.59653466,108630.0,108620.0,0.23317101]
[1756767526451,1.48763705,108630.0,108620.0,0.23317101]
[1756767527414,1.48763569,108630.0,108620.0,0.23317101]
[1756767527830,1.48763569,108630.0,108620.0,0.23313101]
[1756767529179,1.48763569,108630.0,108620.0,0.07621101]
[1756767529427,1.48763569,108630.0,108620.0,0.23313101]
[1756767529582,1.57955168,108630.0,108620.0,0.23313101]
[1756767529800,1.57955168,108630.0,108620.0,0.07621101]
[1756767530003,1.57955168,108630.0,108620.0,0.23313101]
[1756767532137,1.57092867,108630.0,108620.0,0.23313101]
[1756767532355,1.57954774,108630.0,108620.0,0.23313101]
[1756767532967,0.99332567,108630.0,108620.0,0.23313101]
[1756767533173,1.57954715,108630.0,108620.0,0.23313101]
[1756767533383,1.48763116,108630.0,108620.0,0.23313101]
[1756767533591,0.8927912,108630.0,108620.0,0.23313101]
[1756767533770,1.18590194,108630.0,108620.0,0.23313101]
[1756767533974,0.8927912,108630.0,108620.0,0.23313101]
[1756767534194,1.18590194,108630.0,108620.0,0.23313101]
[1756767534566,1.18490194,108630.0,108620.0,0.23313101]
[1756767535093,1.27681793,108630.0,108620.0,0.23413101]
[1756767535531,1.56992867,108630.0,108620.0,0.07721101]
[1756767535768,1.56992867,108630.0,108620.0,0.23409101]
[1756767536309,1.56992867,108630.0,108620.0,0.23309101]
[1756767537907,1.27681793,108630.0,108620.0,0.23309101]
[1756767538688,1.56992867,108630.0,108620.0,0.23309101]
[1756767540154,1.57190867,108630.0,108620.0,0.23309101]
[1756767541734,1.57190867,108630.0,108620.0,0.22811101]
[1756767542259,1.59542466,108630.0,108620.0,0.07123101]
[1756767542458,1.60404519,108630.0,108620.0,0.22807101]
[1756767542703,1.30033392,108630.0,108620.0,0.23305101]
[1756767542903,1.18490194,108630.0,108620.0,0.23305101]
[1756767543701,1.18490194,108630.0,108620.0,0.23301101]
[1756767544518,1.47801268,108630.0,108620.0,0.23301101]
[1756767544731,1.18490194,108630.0,108620.0,0.23301101]
[1756767545713,1.18490194,108630.0,108620.0,0.50905515]
[1756767545915,1.15722194,108630.0,108620.0,0.324927]
[1756767546233,1.15722194,108630.0,108620.0,0.50905515]
[1756767546438,1.15722194,108630.0,108620.0,0.324927]
[1756767546636,1.15722194,108630.0,108620.0,0.50905515]
[1756767547878,1.15722194,108630.0,108620.0,0.51005515]
[1756767548087,0.8641112,108630.0,108620.0,0.51005515]
[1756767548288,0.5241112,108630.0,108620.0,0.51005515]
[1756767549136,0.5241112,108630.0,108620.0,0.51001515]
[1756767550554,0.81722194,108630.0,108620.0,0.51001515]
[1756767553043,0.34,108630.0,108620.0,0.51001515]
[1756767554828,0.34,108630.0,108620.0,0.80312589]
[1756767555291,0.34,108630.0,108620.0,0.83075789]
[1756767555506,0.34,108630.0,108620.0,0.53764715]
[1756767555949,0.34,108630.0,108620.0,0.57939518]
[1756767557073,0.34,108630.0,108620.0,0.57935518]
[1756767557291,0.34,108630.0,108620.0,0.55168318]
[1756767560040,0.34,108630.0,108620.0,0.57935518]
[1756767560239,0.34,108630.0,108620.0,0.55168318]
[1756767562697,0.3427,108630.0,108620.0,0.55168318]
[1756767564401,0.3427,108630.0,108620.0,0.39500318]
[1756767564610,0.3427,108630.0,108620.0,0.55164318]
[1756767566896,0.3427,108630.0,108620.0,0.39500318]
[1756767567054,0.3427,108630.0,108620.0,0.55160318]
[1756767569935,0.3427,108630.0,108620.0,0.55156318]
[1756767570395,0.3427,108630.0,108620.0,0.39500318]
[1756767570549,0.3427,108630.0,108620.0,0.55156318]
[1756767572649,0.3456,108630.0,108620.0,0.55156318]
[1756767575795,0.3456,108630.0,108620.0,0.39500318]
[1756767575997,0.3456,108630.0,108620.0,0.55152318]
[1756767576149,0.5297112,108630.0,108620.0,0.55152318]
[1756767579295,0.5297112,108630.0,108620.0,0.39500318]
[1756767579503,0.5297112,108630.0,108620.0,0.55148318]
[1756767580276,0.35504945,108630.0,108620.0,0.55148318]
[1756767581094,0.5297112,108630.0,108620.0,0.55148318]
[1756767585261,0.5297112,108630.0,108620.0,0.39500318]
[1756767585523,0.5297112,108630.0,108620.0,0.55144318]
[1756767586126,0.5316912,108630.0,108620.0,0.54646318]
[1756767586348,0.5316912,108630.0,108620.0,0.39002318]
[1756767586582,0.82732194,108630.0,108620.0,0.164147]
[1756767587008,0.82732194,108630.0,108620.0,0.320587]
[1756767587209,1.12043268,108630.0,108620.0,0.320587]
[1756767587414,0.82732194,108630.0,108620.0,0.320547]
[1756767588676,0.82732194,108630.0,108620.0,0.164147]
[1756767588881,1.23586466,108630.0,108620.0,0.320547]
[1756767589688,1.23586466,108630.0,108620.0,0.07223101]
[1756767590336,1.23586466,108630.0,108620.0,0.22763101]
[1756767591517,1.26354366,108630.0,108620.0,0.22763101]
[1756767592787,1.24002767,108630.0,108620.0,0.07123101]
[1756767592987,1.24002767,108630.0,108620.0,0.22763101]
[1756767596540,1.02548103,108630.0,108620.0,0.22763101]
[1756767596744,1.23310822,108630.0,108620.0,0.22763101]
[1756767597179,1.20959223,108630.0,108620.0,0.22763101]
[1756767597455,1.20959223,108630.0,108620.0,0.22759101]
[1756767599293,1.20959223,108630.0,108620.0,0.07123101]
[1756767599453,0.64688674,108630.0,108620.0,0.22759101]
[1756767599661,1.23310822,108630.0,108620.0,0.22759101]
[1756767600301,1.23310822,108630.0,108620.0,0.07123101]
[1756767600509,1.57310822,108630.0,108620.0,0.15679101]
[1756767601774,1.57410822,108630.0,108620.0,0.15679101]
[1756767601953,1.57410822,108630.0,108620.0,0.00047101]
[1756767602560,1.47967223,108630.0,108620.0,0.00248101]
[1756767602769,1.1630455,108630.0,108620.0,0.00560101]
[1756767602969,0.86795476,108630.0,108620.0,0.00560101]
[1756767603177,1.1610655,108630.0,108620.0,0.097517]
[1756767603500,0.8210655,108630.0,108620.0,0.097517]
[1756767603655,1.20808223,108630.0,108620.0,0.15679101]
[1756767603846,1.23411822,108630.0,108620.0,0.15679101]
[1756767604051,1.23311822,108630.0,108620.0,0.15679101]
[1756767604924,1.23059822,108630.0,108620.0,0.15679101]
[1756767605785,0.91397149,108630.0,108620.0,0.16173101]
[1756767606871,0.8220555,108630.0,108620.0,0.16173101]
[1756767607109,0.8220455,108630.0,108620.0,0.16173101]
[1756767608043,0.8220455,108630.0,108620.0,0.00047101]
[1756767608268,1.50429857,108630.0,108620.0,0.15675101]
[1756767608498,1.48119223,108630.0,108620.0,0.15675101]
[1756767608725,1.48119223,108630.0,108620.0,0.00047101]
[1756767608949,1.57310822,108630.0,108620.0,0.00047101]
[1756767609434,1.72938822,108630.0,108620.0,0.00047101]
[1756767610554,1.57410822,108630.0,108620.0,0.00047101]
[1756767610781,1.73900871,108630.0,108620.0,0.00047101]
[1756767611499,1.73800871,108630.0,108620.0,0.00047101]
[1756767611932,0.18416045,108610.0,108600.0,0.15921]
[1756767612150,0.81727119,108610.0,108600.0,0.16122]
[1756767613112,0.55184345,108610.0,108600.0,0.16122]
[1756767613332,0.55184345,108610.0,108600.0,0.43829805]
[1756767613559,0.367683,108610.0,108600.0,0.43829805]
[1756767613786,0.34,108610.0,108600.0,0.73140879]
[1756767614008,0.34,108610.0,108600.0,0.43829805]
[1756767614231,0.34,108610.0,108600.0,0.73040879]
[1756767614454,0.34,108610.0,108600.0,0.43729805]
[1756767614898,0.34,108610.0,108600.0,0.43929805]
[1756767615372,0.34,108610.0,108600.0,0.46023687]
[1756767615640,0.34,108610.0,108600.0,0.75334761]
[1756767615867,0.34,108610.0,108600.0,0.75134761]
[1756767616093,0.34,108610.0,108600.0,1.04445835]
[1756767616314,0.34,108610.0,108600.0,1.38745835]
[1756767616541,0.34,108610.0,108600.0,1.09134761]
[1756767616972,0.34,108610.0,108600.0,1.38445835]
[1756767617180,0.34,108610.0,108600.0,1.38941835]
[1756767617382,0.34,108610.0,108600.0,0.80319687]
[1756767617600,0.34,108610.0,108600.0,1.09130761]
[1756767617806,0.34,108610.0,108600.0,1.09730761]
[1756767619052,0.34,108610.0,108600.0,0.80419687]
[1756767619252,0.34,108610.0,108600.0,1.09730761]
[1756767619880,0.34,108610.0,108600.0,1.12497961]
[1756767620900,0.34,108610.0,108600.0,1.12493961]
[1756767622880,0.34,108610.0,108600.0,0.83182887]
[1756767623113,0.34,108610.0,108600.0,1.12493961]
[1756767623699,0.34,108610.0,108600.0,0.96873961]
[1756767623852,0.34,108610.0,108600.0,1.12493961]
[1756767625711,0.34,108610.0,108600.0,1.41805035]
[1756767629657,0.34,108610.0,108600.0,1.41801035]
[1756767630766,0.34,108610.0,108600.0,1.68131035]
[1756767632285,0.21174731,108650.0,108640.0,0.18409425]
[1756767632490,0.50372731,108650.0,108640.0,0.50293024]
[1756767632694,0.47605731,108650.0,108640.0,0.50293024]
[1756767633328,0.47857731,108650.0,108640.0,0.50293024]
[1756767633538,0.29198,108650.0,108640.0,0.50440127]
[1756767634148,0.29198,108650.0,108640.0,0.50934127]
[1756767634345,0.29198,108650.0,108640.0,0.50834127]
[1756767635556,0.29198,108650.0,108640.0,0.55031374]
[1756767636045,0.29198,108650.0,108640.0,0.55131374]
[1756767636475,0.29198,108650.0,108640.0,0.55031374]
[1756767636692,0.29198,108650.0,108640.0,0.54830374]
[1756767636900,0.29198,108650.0,108640.0,0.55030374]
[1756767639959,0.29,108650.0,108640.0,0.55230374]
[1756767640157,0.29,108650.0,108640.0,0.7102333]
[1756767640368,0.29,108650.0,108640.0,0.8663133]
[1756767640573,0.29,108650.0,108640.0,0.8939783]
[1756767640793,0.11365743,108650.0,108640.0,0.8939783]
[1756767640988,0.18686037,108660.0,108650.0,0.18407731]
[1756767641229,0.52884037,108660.0,108650.0,0.2759933]
[1756767641434,0.53821597,108660.0,108650.0,0.4320333]
[1756767643206,0.53821597,108660.0,108650.0,0.4330333]
[1756767646930,0.53821597,108660.0,108650.0,0.24895599]
[1756767647520,0.53821597,108660.0,108650.0,0.24891599]
[1756767648070,0.83132671,108660.0,108650.0,0.24891599]
[1756767648704,0.53821597,108660.0,108650.0,0.24891599]
[1756767650151,0.83384671,108660.0,108650.0,0.09291599]
[1756767650356,0.83384671,108660.0,108650.0,0.24891599]
[1756767650567,0.83384671,108660.0,108650.0,0.09291599]
[1756767650781,1.12695745,108660.0,108650.0,0.24891599]
[1756767651238,1.12695745,108660.0,108650.0,0.24887599]
[1756767651860,0.83384671,108660.0,108650.0,0.24887599]
[1756767652063,1.12695745,108660.0,108650.0,0.24887599]
[1756767652299,1.59100713,108660.0,108650.0,0.15696]
[1756767652502,1.61867713,108660.0,108650.0,0.15696]
[1756767652944,1.61867713,108660.0,108650.0,0.001]
[1756767653160,1.61867713,108660.0,108650.0,0.15696]
[1756767655019,1.61005943,108660.0,108650.0,0.15696]
[1756767655231,1.61868005,108660.0,108650.0,0.15696]
[1756767655643,1.61868067,108660.0,108650.0,0.15696]
[1756767656275,0.91450721,108660.0,108650.0,0.15596]
[1756767656493,0.86761795,108660.0,108650.0,0.15596]
[1756767656734,0.86761795,108660.0,108650.0,0.16111]
[1756767657171,0.86861795,108660.0,108650.0,0.16111]
[1756767657393,0.57550721,108660.0,108650.0,0.25302599]
[1756767657599,0.57450721,108660.0,108650.0,0.25302599]
[1756767657826,0.57450721,108660.0,108650.0,0.25402599]
[1756767658496,0.57450721,108660.0,108650.0,0.4381033]
[1756767659110,0.57450721,108660.0,108650.0,0.4371033]
[1756767659421,0.57450721,108660.0,108650.0,0.4391033]
[1756767659846,0.39044684,108660.0,108650.0,0.4391033]
[1756767660063,0.38846684,108660.0,108650.0,0.4391033]
[1756767660268,0.37047,108660.0,108650.0,0.4391033]
[1756767660422,0.3428,108660.0,108650.0,0.4391033]
[1756767661465,0.3428,108660.0,108650.0,0.75315286]
[1756767661669,0.3428,108660.0,108650.0,0.46004212]
[1756767662409,0.3428,108660.0,108650.0,0.46000212]
[1756767664606,0.3428,108660.0,108650.0,0.30408212]
[1756767664815,0.3428,108660.0,108650.0,0.46000212]
[1756767669382,0.3428,108660.0,108650.0,0.75311286]
[1756767671425,0.3428,108660.0,108650.0,1.09311286]
[1756767672296,0.3428,108660.0,108650.0,1.11877286]
[1756767672712,0.3428,108660.0,108650.0,1.12377286]
[1756767674217,0.00144917,108680.0,108670.0,0.20498225]
[1756767674438,0.00144917,108680.0,108670.0,0.58881824]
[1756767674439,0.17144917,108680.0,108670.0,0.58881824]
[1756767674650,0.17144917,108680.0,108670.0,1.03991898]
[1756767674861,0.17144917,108680.0,108670.0,0.74977824]
[1756767675077,0.17144917,108680.0,108670.0,0.77743124]
[1756767675284,0.17144917,108680.0,108670.0,1.07054198]
[1756767675922,0.17144917,108680.0,108670.0,0.77743124]
[1756767676600,0.17144917,108680.0,108670.0,0.77739124]
[1756767676809,0.17144917,108680.0,108670.0,0.62155124]
[1756767677018,0.17342917,108680.0,108670.0,0.77631124]
[1756767677491,0.17342917,108680.0,108670.0,0.75373824]
[1756767677492,0.17144917,108680.0,108670.0,0.75373824]
[1756767677686,0.17144917,108680.0,108670.0,1.04684898]
[1756767678117,0.17144917,108680.0,108670.0,0.75373824]
[1756767678327,0.17244917,108680.0,108670.0,1.05884898]
[1756767678534,0.17244917,108680.0,108670.0,1.05484898]
[1756767678741,0.17344917,108680.0,108670.0,0.89900898]
[1756767678945,0.17244917,108680.0,108670.0,1.04284898]
[1756767679153,0.17344917,108680.0,108670.0,1.05384898]
[1756767679390,0.17344917,108680.0,108670.0,0.89800898]
[1756767679595,0.17144917,108680.0,108670.0,1.04284898]
[1756767679808,0.17342917,108680.0,108670.0,0.75073824]
[1756767680013,0.17442917,108680.0,108670.0,0.76273824]
[1756767681237,0.17442917,108680.0,108670.0,0.75073824]
[1756767681238,0.17144917,108680.0,108670.0,0.75073824]
[1756767681474,0.17244917,108680.0,108670.0,0.76073824]
[1756767681683,0.17244917,108680.0,108670.0,0.80291045]
[1756767681897,0.17442917,108680.0,108670.0,0.64907045]
[1756767682128,0.17144917,108680.0,108670.0,0.79191045]
[1756767682358,0.17244917,108680.0,108670.0,1.12567719]
[1756767683454,0.17144917,108680.0,108670.0,1.11467719]
[1756767685037,0.17244917,108680.0,108670.0,1.12567719]
[1756767685494,0.17144917,108680.0,108670.0,1.11467719]
[1756767685908,0.17244917,108680.0,108670.0,1.12567719]
[1756767687861,0.17244917,108680.0,108670.0,1.12563719]
[1756767688079,0.17191547,108680.0,108670.0,1.12563719]
[1756767690992,0.17191547,108680.0,108670.0,0.67672645]
[1756767691211,0.17191547,108680.0,108670.0,1.12563719]
[1756767692977,0.17191547,108680.0,108670.0,1.38893719]
[1756767693238,0.17191547,108680.0,108670.0,1.09582645]
[1756767693439,0.17191547,108680.0,108670.0,1.38893719]
[1756767698326,0.17191547,108680.0,108670.0,1.38889719]
[1756767702148,0.17389547,108680.0,108670.0,1.06305045]
[1756767702365,0.17389547,108680.0,108670.0,1.35813119]
[1756767702592,0.19612237,108680.0,108670.0,1.36115119]
[1756767703022,0.19612237,108680.0,108670.0,1.20539119]
[1756767703248,0.19612237,108680.0,108670.0,1.35616119]
[1756767703803,0.19612237,108680.0,108670.0,1.36115119]
[1756767704660,0.19612237,108680.0,108670.0,0.90729045]
[1756767704867,0.6757796,108680.0,108670.0,0.4390082]
[1756767705071,0.6757796,108680.0,108670.0,0.39683599]
[1756767705423,0.6757796,108680.0,108670.0,0.55259599]
[1756767705641,0.68441208,108680.0,108670.0,0.55259599]
[1756767705865,0.68441208,108680.0,108670.0,0.73663942]
[1756767706098,0.68441208,108680.0,108670.0,0.55259599]
[1756767706532,0.68441208,108680.0,108670.0,0.39683599]
[1756767706796,0.68441208,108680.0,108670.0,0.55259599]
[1756767707904,0.68441208,108680.0,108670.0,0.39683599]
[1756767708133,0.68441208,108680.0,108670.0,0.55259599]
[1756767708354,0.6757796,108680.0,108670.0,0.55259599]
[1756767710933,0.19612237,108680.0,108670.0,0.73663942]